bitfinex/quotes_ETHUSD_20251107
["timestamp","ask_amount","ask_price","bid_price","bid_amount"]
[1762496960615,6.57892001,3366.4,3366.3,0.9574]
[1762496961419,5.90412001,3366.4,3366.3,0.9574]
[1762496963231,8.87465232,3366.4,3366.3,0.9574]
[1762496965523,5.90412001,3366.4,3366.3,0.9574]
[1762496966826,5.49861601,3366.4,3366.3,0.9574]
[1762496967025,5.90412001,3366.4,3366.3,0.9574]
[1762496970137,8.87465232,3366.4,3366.3,0.9574]
[1762496970301,4.63574831,3366.4,3366.3,0.9574]
[1762496971121,4.63574831,3366.4,3366.3,0.4692]
[1762496972255,5.47182334,3366.4,3366.3,0.001]
[1762496972554,5.62142334,3366.4,3366.3,0.001]
[1762496973959,3.37638932,3366.0,3365.9,0.001]
[1762496974183,7.66460986,3366.0,3365.9,0.001]
[1762496974326,9.36149689,3366.0,3365.9,0.001]
[1762496974740,10.25461851,3366.0,3365.9,0.001]
[1762496975928,9.81744348,3366.0,3365.9,0.001]
[1762496976153,10.21384348,3366.0,3365.9,0.001]
[1762496976720,9.81744348,3366.0,3365.9,0.001]
[1762496976926,5.12371894,3366.0,3365.9,0.4692]
[1762496977254,10.21384348,3366.0,3365.9,0.001]
[1762496977865,9.81744348,3366.0,3365.9,0.001]
[1762496981326,10.21384348,3366.0,3365.9,0.001]
[1762496981559,3.37665413,3365.7,3365.6,0.001]
[1762496981860,8.92458667,3365.7,3365.6,0.001]
[1762496982061,9.32098667,3365.7,3365.6,0.001]
[1762496982358,9.51618667,3365.7,3365.6,0.001]
[1762496982534,9.11978667,3365.7,3365.6,0.001]
[1762496985852,9.58594179,3365.7,3365.6,0.001]
[1762496986966,9.11978667,3365.7,3365.6,0.001]
[1762496991342,8.97018667,3365.7,3365.6,0.4837]
[1762496991643,8.97018667,3365.7,3365.6,0.9631]
[1762496991969,8.97018667,3365.7,3365.6,0.4837]
[1762496993766,9.11978667,3365.7,3365.6,0.001]
[1762496994075,8.97018667,3365.7,3365.6,0.4837]
[1762496994551,8.97018667,3365.7,3365.6,0.001]
[1762496994552,9.11978667,3365.7,3365.6,0.001]
[1762496994747,8.97018667,3365.7,3365.6,0.4837]
[1762496995062,8.97018667,3365.7,3365.6,0.9631]
[1762496996953,4.83156613,3365.7,3365.6,0.9631]
[1762496997157,8.97018667,3365.7,3365.6,0.9631]
[1762496997753,5.99903654,3365.7,3365.6,0.9631]
[1762496998157,5.80383654,3365.7,3365.6,0.9631]
[1762496999678,1.665216,3365.7,3365.6,0.9631]
[1762496999864,1.259712,3365.7,3365.6,0.9631]
[1762497001019,5.80383654,3365.7,3365.6,0.9631]
[1762497001786,8.77498667,3365.7,3365.6,0.9631]
[1762497002414,8.77498667,3365.7,3365.6,0.4837]
[1762497002716,8.77498667,3365.7,3365.6,0.001]
[1762497002902,1.665216,3365.7,3365.6,0.9631]
[1762497003309,4.63636613,3365.7,3365.6,0.9631]
[1762497003486,4.63636613,3365.7,3365.6,0.4837]
[1762497003818,1.665216,3365.7,3365.6,0.9631]
[1762497004208,4.63636613,3365.7,3365.6,0.9631]
[1762497004403,4.63636613,3365.7,3365.6,0.4837]
[1762497004604,1.665216,3365.7,3365.6,0.9631]
[1762497007204,4.63636613,3365.7,3365.6,0.4837]
[1762497007393,4.63636613,3365.7,3365.6,0.001]
[1762497007725,1.665216,3365.7,3365.6,0.9631]
[1762497008517,1.259712,3365.7,3365.6,0.4837]
[1762497008711,1.665216,3365.7,3365.6,0.9631]
[1762497011021,4.63636613,3365.7,3365.6,0.9631]
[1762497012250,1.665216,3365.7,3365.6,0.9631]
[1762497012390,4.78596613,3365.7,3365.6,0.001]
[1762497012592,4.63636613,3365.7,3365.6,0.4933]
[1762497013101,4.63636613,3365.7,3365.6,0.9471]
[1762497013311,4.63636613,3365.7,3365.6,0.4933]
[1762497013502,4.23086213,3365.7,3365.6,0.4933]
[1762497013838,4.63636613,3365.7,3365.6,0.9471]
[1762497014735,4.63636613,3365.7,3365.6,0.001]
[1762497015033,4.78596613,3365.7,3365.6,0.001]
[1762497016246,5.18236613,3365.7,3365.6,0.001]
[1762497016619,5.56912449,3365.7,3365.6,0.001]
[1762497016813,2.97123841,3365.6,3365.5,0.001]
[1762497017126,2.97123841,3365.6,3365.2,0.001]
[1762497017127,8.77533982,3365.3,3365.2,0.001]
[1762497017328,0.405504,3365.1,3364.0,0.1952]
[1762497017512,1.309712,3365.2,3364.0,0.1952]
[1762497017513,4.54412454,3364.1,3364.0,0.1952]
[1762497017717,4.54412454,3364.1,3364.0,0.649]
[1762497017949,4.63794044,3364.0,3363.3,0.4538]
[1762497018252,4.63794044,3364.0,3363.6,0.1928]
[1762497018253,4.54412454,3363.7,3363.6,0.1928]
[1762497018635,4.54412454,3363.7,3363.6,1.1389]
[1762497018948,4.54412454,3363.7,3363.6,0.6851]
[1762497019154,4.54412454,3363.7,3363.6,0.9461]
[1762497019319,5.80383654,3363.7,3363.6,0.9461]
[1762497019653,2.9730935,3363.5,3363.4,0.1928]
[1762497019875,1.665216,3363.4,3363.2,0.4538]
[1762497020014,0.405504,3363.2,3363.0,0.1866]
[1762497020418,0.405504,3363.2,3363.1,0.4923]
[1762497020652,2.08864103,3363.2,3362.6,0.4538]
[1762497020954,4.13862054,3362.8,3362.6,0.4538]
[1762497021330,0.405504,3362.7,3362.6,0.4538]
[1762497021746,0.405504,3362.7,3362.6,0.9461]
[1762497022052,0.405504,3362.7,3362.6,3.91998925]
[1762497022255,4.13862054,3362.8,3362.6,4.60938155]
[1762497022560,4.13862054,3362.8,3362.7,0.9461]
[1762497022744,4.13862054,3363.1,3362.7,0.9461]
[1762497022943,4.54412454,3363.1,3362.9,2.97362319]
[1762497023262,5.80383654,3363.1,3363.0,0.9461]
[1762497023866,5.80383654,3363.1,3363.0,0.4923]
[1762497024170,0.148,3363.0,3362.8,2.97369646]
[1762497024370,0.148,3363.0,3362.0,0.3408]
[1762497024371,1.259712,3363.0,3362.0,0.3408]
[1762497024572,5.39833254,3362.1,3362.0,0.1928]
[1762497024759,5.39833254,3362.1,3362.0,0.6466]
[1762497025063,1.259712,3362.1,3362.0,1.1389]
[1762497025982,1.259712,3362.1,3362.0,4.11331998]
[1762497026182,1.259712,3362.1,3362.0,1.1389]
[1762497027320,0.405504,3362.0,3361.2,0.4538]
[1762497027585,0.405504,3362.0,3360.9,0.1928]
[1762497027586,0.405504,3361.6,3361.0,0.6466]
[1762497027747,4.13862054,3361.3,3361.0,0.6466]
[1762497027947,4.13862054,3361.3,3361.0,0.1928]
[1762497028144,1.259712,3361.5,3361.2,0.4923]
[1762497028344,1.259712,3361.5,3361.1,0.4538]
[1762497028586,4.13862054,3361.6,3361.4,0.4923]
[1762497028777,7.11339543,3361.6,3361.5,0.4923]
[1762497028963,4.13862054,3361.6,3361.5,0.4923]
[1762497029782,7.11339445,3361.6,3361.5,0.4923]
[1762497029948,0.405504,3361.5,3361.0,0.1928]
[1762497030147,4.28822054,3361.6,3361.0,0.1928]
[1762497030148,4.13862054,3361.3,3361.0,0.1928]
[1762497030376,4.25806801,3361.1,3361.0,0.1928]
[1762497030887,4.25806801,3361.1,3361.0,0.6851]
[1762497031394,4.25806801,3361.1,3360.7,0.1928]
[1762497031559,0.405504,3361.2,3361.0,0.4923]
[1762497031773,4.25806801,3361.1,3361.0,0.4923]
[1762497033263,4.25806801,3361.1,3360.7,0.6466]
[1762497033264,7.23337073,3361.1,3360.7,0.6466]
[1762497033471,4.25806801,3360.8,3360.7,0.6466]
[1762497033788,4.25806801,3360.8,3360.7,0.1928]
[1762497033956,4.25806801,3360.8,3360.7,0.6851]
[1762497034357,4.25806801,3360.8,3360.7,1.1389]
[1762497035488,4.40606801,3360.8,3360.7,4.11446534]
[1762497035689,0.148,3360.8,3360.7,4.11446534]
[1762497036019,0.148,3360.8,3360.7,1.8480201]
[1762497036168,4.40606801,3360.8,3360.7,4.11447056]
[1762497037580,1.452512,3361.6,3360.7,1.1389]
[1762497037581,1.658612,3361.6,3360.7,1.1389]
[1762497037781,1.259712,3361.1,3360.8,0.4538]
[1762497037980,4.25806801,3360.9,3360.8,0.4538]
[1762497038386,4.25806801,3360.9,3360.8,0.9461]
[1762497041273,4.25806801,3361.0,3360.8,0.4923]
[1762497041505,4.25806801,3361.0,3360.8,0.9771]
[1762497041910,7.23339719,3361.0,3360.8,0.4923]
[1762497042072,2.97539349,3360.9,3360.8,0.4923]
[1762497042274,2.97539349,3360.9,3360.6,0.001]
[1762497042507,4.25806801,3360.7,3360.6,0.001]
[1762497042911,4.25806801,3360.7,3360.6,0.9399]
[1762497043377,4.25806801,3360.7,3360.6,0.4551]
[1762497043708,4.25806801,3360.7,3359.7,2.97640308]
[1762497043709,2.97589776,3360.4,3359.7,2.97643866]
[1762497043908,4.25806801,3359.9,3359.7,0.4848]
[1762497044078,4.25806801,3359.9,3359.8,0.6469]
[1762497044507,4.25806801,3359.9,3359.8,1.1317]
[1762497044711,4.40766801,3359.9,3359.8,0.58618718]
[1762497044911,2.97652899,3359.7,3359.2,0.6781]
[1762497045110,4.25806801,3359.3,3359.2,0.6781]
[1762497045313,4.25806801,3359.3,3359.1,0.1933]
[1762497045479,5.51778001,3359.3,3359.2,0.4541]
[1762497045681,5.51778001,3359.3,3359.2,0.9389]
[1762497046302,1.259712,3359.3,3359.2,0.9389]
[1762497047915,1.259712,3359.3,3359.2,0.4541]
[1762497049313,1.259712,3359.3,3359.2,0.9389]
[1762497049703,1.259712,3359.2,3358.3,0.1488]
[1762497049904,1.259712,3359.2,3357.4,0.4848]
[1762497049905,0.05,3359.1,3358.1,0.1933]
[1762497050103,0.4848,3359.1,3358.2,0.4848]
[1762497050304,0.5592,3359.9,3359.0,0.4541]
[1762497050305,0.0624,3359.9,3359.0,0.4541]
[1762497050620,0.5592,3359.9,3359.4,0.4541]
[1762497050801,2.97637945,3359.8,3359.4,0.4541]
[1762497051132,0.1833,3359.9,3359.4,0.4541]
[1762497051314,0.89467178,3360.1,3359.8,0.4541]
[1762497051611,1.259712,3359.8,3359.1,0.1933]
[1762497051913,1.259712,3359.8,3359.1,0.6781]
[1762497052114,1.259712,3359.8,3359.3,2.9767857]
[1762497052289,1.259712,3359.8,3359.7,0.4541]
[1762497052809,5.65256258,3359.9,3359.7,0.4541]
[1762497053017,5.65256258,3359.9,3359.8,0.4541]
[1762497053193,1.259712,3360.3,3359.8,0.4541]
[1762497053391,1.259712,3360.3,3360.2,0.4541]
[1762497053582,0.89454906,3360.5,3360.2,0.6106]
[1762497053919,1.259712,3360.8,3360.2,0.1565]
[1762497054089,4.23519966,3360.8,3360.2,0.1565]
[1762497054697,2.97559173,3360.7,3360.2,0.1565]
[1762497055003,0.7939,3361.0,3360.2,0.1565]
[1762497055213,2.97539349,3360.9,3360.6,0.4541]
[1762497055395,1.259712,3360.8,3360.6,0.4541]
[1762497056098,1.259712,3360.8,3360.3,0.4848]
[1762497056099,1.443012,3361.0,3360.7,0.4541]
[1762497056302,1.939812,3361.0,3360.3,0.4848]
[1762497056497,1.939812,3361.0,3359.1,0.1933]
[1762497056498,0.902304,3360.9,3359.9,0.1933]
[1762497056718,0.2769,3360.4,3359.9,0.1933]
[1762497057104,0.2769,3360.4,3360.0,0.4848]
[1762497057297,1.259712,3360.4,3360.0,0.4848]
[1762497057528,0.405504,3360.9,3360.3,0.4541]
[1762497057716,3.38092909,3360.9,3360.4,0.4541]
[1762497057916,1.259712,3360.8,3360.1,0.1933]
[1762497058158,1.259712,3360.4,3360.0,0.4848]
[1762497058360,4.23557425,3360.4,3360.0,0.4848]
[1762497058565,1.259712,3360.4,3359.9,0.1933]
[1762497058769,2.97592476,3360.3,3359.9,0.1933]
[1762497059274,0.2769,3360.0,3359.5,2.9765976]
[1762497059440,5.65256258,3360.0,3359.2,0.6781]
[1762497059642,5.65256258,3360.0,3359.3,0.4848]
[1762497059952,0.1488,3359.4,3359.3,3.46160106]
[1762497060469,0.1488,3359.7,3359.4,2.97672203]
[1762497060651,1.259712,3360.4,3359.5,2.97662211]
[1762497060652,0.1488,3359.9,3359.5,2.97662211]
[1762497060964,0.1488,3359.9,3359.6,0.4541]
[1762497061177,0.1488,3359.9,3359.8,0.4541]
[1762497061693,0.1488,3359.9,3359.8,0.9389]
[1762497061989,0.1488,3359.9,3359.8,3.91526764]
[1762497062291,8.62777383,3361.2,3360.1,2.97609762]
[1762497062452,1.259712,3360.9,3360.5,0.4541]
[1762497062791,2.97540417,3360.9,3360.5,0.4541]
[1762497062972,2.97533078,3361.0,3360.5,0.9389]
[1762497063383,2.97533078,3361.0,3360.5,0.4541]
[1762497063580,8.62769617,3361.2,3360.5,0.4541]
[1762497063882,1.259712,3361.1,3360.6,0.4848]
[1762497064065,5.65256258,3361.2,3360.6,0.4848]
[1762497064397,1.259712,3361.1,3360.6,0.4848]
[1762497066363,4.23493201,3361.1,3360.6,0.4848]
[1762497066564,1.259712,3361.1,3360.6,0.4848]
[1762497067885,1.259712,3361.1,3361.0,0.4541]
[1762497068480,5.51832271,3361.1,3361.0,0.4541]
[1762497070491,5.52032271,3361.1,3361.0,0.4541]
[1762497070787,5.52032271,3361.1,3360.4,2.975824]
[1762497070788,1.259712,3361.0,3360.4,2.975824]
[1762497071090,4.25861071,3360.5,3360.4,2.975824]
[1762497071587,4.25861071,3360.5,3360.4,3.437824]
[1762497071973,4.25861071,3360.5,3360.4,3.898824]
[1762497073898,4.35161071,3360.5,3360.2,0.1933]
[1762497074065,0.148,3360.4,3360.1,2.97703136]
[1762497074267,4.25861071,3360.2,3360.1,0.001]
[1762497074496,4.68191071,3360.2,3360.1,0.001]
[1762497076286,0.4233,3360.2,3360.1,0.001]
[1762497076903,0.1488,3360.2,3360.1,0.463]
[1762497077103,1.259712,3360.4,3360.1,0.924]
[1762497077303,1.259712,3360.4,3360.1,0.463]
[1762497078517,1.259712,3360.4,3360.3,0.462]
[1762497078891,4.23572533,3360.2,3360.1,0.001]
[1762497079091,4.24062533,3360.2,3360.1,0.001]
[1762497079313,5.14312933,3360.2,3360.1,0.001]
[1762497080207,5.5290788,3360.2,3360.1,0.001]
[1762497081283,3.38178305,3359.9,3359.8,0.001]
[1762497081483,9.30166983,3359.9,3359.8,0.001]
[1762497081709,9.98416983,3359.9,3359.8,0.001]
[1762497084292,11.24388183,3359.9,3359.8,0.001]
[1762497086923,8.26760278,3359.9,3359.8,0.001]
[1762497087088,1.259712,3359.9,3359.8,0.463]
[1762497087286,1.532112,3359.9,3359.8,0.001]
[1762497087792,0.405504,3360.2,3359.8,0.001]
[1762497088719,1.259712,3360.3,3360.1,0.462]
[1762497088923,1.259712,3360.4,3360.2,0.462]
[1762497089099,1.259712,3360.4,3360.3,0.462]
[1762497089795,4.23739844,3360.6,3360.3,0.462]
[1762497089998,1.259712,3360.4,3360.3,0.462]
[1762497090399,2.97771519,3360.6,3360.3,0.462]
[1762497091127,0.148,3360.3,3359.9,0.461]
[1762497091345,0.1488,3359.9,3359.8,0.001]
[1762497091828,0.1488,3359.9,3359.8,0.463]
[1762497092563,0.1488,3359.9,3359.8,0.924]
[1762497092759,5.33959105,3359.9,3359.8,0.001]
[1762497092927,5.74509505,3359.9,3359.8,0.001]
[1762497093658,1.408512,3359.9,3359.8,0.463]
[1762497093858,1.259712,3359.9,3359.8,0.924]
[1762497094261,1.259712,3359.9,3359.8,0.001]
[1762497094991,1.259712,3359.9,3359.8,0.463]
[1762497095763,4.50839105,3359.9,3359.8,0.001]
[1762497096059,1.532112,3359.9,3359.8,0.001]
[1762497096564,4.91389505,3359.9,3359.8,0.001]
[1762497096730,1.937616,3359.9,3359.8,0.001]
[1762497096929,1.665216,3359.9,3359.8,0.463]
[1762497097762,1.259712,3359.9,3359.8,0.463]
[1762497099955,1.259712,3359.9,3359.8,0.9136]
[1762497101850,4.2356638,3360.3,3359.8,0.9136]
[1762497102269,1.259712,3360.1,3359.8,0.9136]
[1762497102437,3.4642471,3360.3,3359.8,0.9136]
[1762497102637,1.748012,3360.3,3359.8,0.9136]
[1762497103067,4.72396902,3360.3,3359.8,0.9136]
[1762497103270,1.259712,3360.1,3359.8,0.9136]
[1762497104072,4.72397622,3360.3,3359.8,0.9136]
[1762497104937,1.665216,3360.4,3359.9,0.4803]
[1762497105133,4.64108733,3360.4,3359.9,0.4803]
[1762497105564,4.2356517,3360.3,3359.9,0.4803]
[1762497105767,1.259712,3360.1,3359.8,0.001]
[1762497105974,0.1488,3359.9,3359.8,0.001]
[1762497106159,3.40617905,3359.9,3359.8,0.001]
[1762497106366,4.08087905,3359.9,3359.8,0.001]
[1762497106674,0.4319,3359.9,3359.8,0.001]
[1762497107352,3.40817905,3359.9,3359.8,0.001]
[1762497107550,4.07787905,3359.9,3359.8,0.001]
[1762497107752,1.865012,3359.9,3359.8,0.001]
[1762497107965,5.33929105,3359.9,3359.8,0.001]
[1762497108469,1.865012,3359.9,3359.8,0.001]
[1762497110079,1.408512,3359.9,3359.8,0.001]
[1762497110283,1.865012,3359.9,3359.8,0.001]
[1762497110477,2.173112,3359.9,3359.8,0.001]
[1762497110659,1.865012,3359.9,3359.8,0.001]
[1762497111681,1.408512,3359.9,3359.8,0.4528]
[1762497113883,1.408512,3359.9,3359.8,0.9331]
[1762497114381,1.408512,3359.9,3359.8,3.90946764]
[1762497114580,1.408512,3359.9,3359.8,0.9331]
[1762497114783,1.408512,3359.9,3359.8,3.90946764]
[1762497114980,1.408512,3359.9,3359.8,0.9331]
[1762497115384,1.408512,3359.9,3359.8,3.90946764]
[1762497115579,1.408512,3359.9,3359.8,0.9331]
[1762497116750,1.408512,3359.9,3359.8,3.90946764]
[1762497117764,0.1488,3359.9,3359.8,3.90946764]
[1762497118491,0.1488,3359.9,3359.8,3.42916764]
[1762497118655,0.1488,3359.9,3359.8,3.90946764]
[1762497119186,0.1488,3359.9,3359.8,3.42916764]
[1762497119346,0.1488,3359.9,3359.8,3.90946764]
[1762497120705,0.1488,3359.9,3359.8,0.9331]
[1762497121001,0.1488,3359.9,3359.8,3.90946764]
[1762497121611,5.33929105,3359.9,3359.8,0.001]
[1762497121783,6.14569508,3359.9,3359.8,0.001]
[1762497121984,6.14569508,3359.9,3359.4,0.001]
[1762497121985,4.64184942,3359.5,3359.4,0.001]
[1762497122281,8.7998836,3359.5,3359.4,0.001]
[1762497122495,9.2881836,3359.5,3359.4,0.001]
[1762497124422,2.21491603,3359.4,3358.4,0.1847]
[1762497124586,1.259712,3358.8,3358.5,2.97745434]
[1762497124786,1.259712,3358.8,3358.4,3.6425754]
[1762497124987,1.259712,3358.8,3358.7,0.4518]
[1762497128396,1.716212,3358.8,3358.6,0.001]
[1762497128818,4.23699038,3358.8,3358.6,0.001]
[1762497129025,0.455,3358.7,3358.6,0.001]
[1762497129325,1.259712,3358.8,3358.6,0.001]
[1762497129492,1.259712,3358.8,3358.6,0.4528]
[1762497130318,4.23698021,3358.8,3358.6,0.4528]
[1762497130513,4.23698021,3358.8,3358.6,0.001]
[1762497130728,4.98175442,3358.7,3358.6,0.001]
[1762497132929,1.684312,3358.7,3358.6,0.001]
[1762497133265,4.66165442,3358.7,3358.6,0.001]
[1762497133851,1.259712,3358.7,3358.6,0.4609]
[1762497135232,4.64975442,3358.7,3358.6,0.001]
[1762497135861,1.672412,3358.7,3358.6,0.001]
[1762497136060,4.64975442,3358.7,3358.6,0.001]
[1762497138145,5.82734618,3358.7,3358.6,0.001]
[1762497138355,8.8046886,3358.7,3358.6,0.001]
[1762497138861,5.82734618,3358.7,3358.6,0.001]
[1762497139053,8.8046886,3358.7,3358.6,0.001]
[1762497139229,9.1256886,3358.7,3358.6,0.001]
[1762497139432,9.5311926,3358.7,3358.6,0.001]
[1762497139637,6.23285018,3358.7,3358.6,0.001]
[1762497139849,6.72240767,3358.7,3358.6,0.001]
[1762497140042,5.41464618,3358.7,3358.6,0.001]
[1762497140250,1.259712,3358.7,3358.6,3.91233107]
[1762497140471,0.1488,3358.7,3358.6,4.60141647]
[1762497140676,0.2431,3358.7,3358.6,0.001]
[1762497140879,4.15493418,3358.8,3358.6,0.4609]
[1762497141080,1.259712,3358.8,3358.7,3.91124242]
[1762497141880,4.15493418,3359.3,3358.9,2.97712364]
[1762497142078,4.15493418,3359.3,3359.2,0.4599]
[1762497142376,7.13311929,3360.1,3359.4,2.97669351]
[1762497142576,1.259712,3359.9,3359.6,0.4599]
[1762497142786,4.64833418,3360.1,3359.6,0.4599]
[1762497142787,4.15493418,3359.8,3359.6,0.4599]
[1762497142952,4.15493418,3359.8,3359.7,0.474]
[1762497143141,5.41464618,3359.8,3359.7,0.9339]
[1762497143345,1.259712,3359.8,3359.7,0.9339]
[1762497145174,1.261712,3359.8,3359.7,0.9339]
[1762497145375,1.261712,3359.8,3359.7,3.91035623]
[1762497146577,1.261712,3359.8,3359.7,0.9339]
[1762497147143,1.261712,3359.8,3359.7,3.91035623]
[1762497147359,0.002,3359.8,3359.7,4.59905428]
[1762497148987,0.002,3359.8,3359.7,3.91035623]
[1762497149164,0.002,3359.8,3359.7,0.4599]
[1762497149696,0.002,3359.8,3359.7,0.9339]
[1762497151443,0.002,3359.8,3359.7,0.4599]
[1762497152210,0.002,3359.8,3359.7,0.9339]
[1762497152410,4.26356849,3359.8,3359.7,0.4599]
[1762497153890,0.002,3359.8,3359.7,3.91035623]
[1762497154664,0.002,3359.8,3359.7,0.9339]
[1762497155531,0.002,3359.8,3359.7,3.91035623]
[1762497156030,0.002,3359.8,3359.7,4.74785511]
[1762497158626,0.002,3359.8,3359.7,4.74219765]
[1762497162653,0.002,3359.8,3359.7,8.53219765]
[1762497162829,0.002,3360.1,3360.0,2.97619047]
[1762497163020,0.002,3360.1,3360.0,3.44079047]
[1762497163336,0.002,3360.1,3360.0,5.52876053]
[1762497163512,0.002,3360.1,3360.0,5.53323176]
[1762497167812,0.002,3360.1,3360.0,9.32323176]
[1762497169123,0.002,3360.1,3360.0,9.31876053]
[1762497170524,0.002,3360.1,3360.0,9.32323191]
[1762497171310,0.002,3360.1,3360.0,5.53323191]
[1762497173852,0.2662,3360.1,3360.0,0.15327138]
[1762497174050,0.002,3360.1,3360.0,3.44079047]
[1762497174217,0.002,3360.1,3360.0,3.91499047]
[1762497175028,0.002,3360.1,3360.0,4.60411788]
[1762497177548,0.002,3360.1,3360.0,4.60858918]
[1762497179983,0.002,3360.1,3360.0,8.39858918]
[1762497180369,0.002,3360.1,3360.0,7.92438918]
[1762497180561,0.002,3360.1,3360.0,7.23526177]
[1762497181148,0.2662,3360.1,3360.0,6.76619047]
[1762497181654,0.002,3360.1,3360.0,7.23079047]
[1762497181859,0.002,3360.1,3360.0,6.76619047]
[1762497182067,0.2662,3360.1,3360.0,6.76619047]
[1762497182687,0.002,3360.1,3360.0,7.23079047]
[1762497182979,0.2662,3360.1,3360.0,6.76619047]
[1762497183548,0.728,3360.1,3359.8,0.001]
[1762497183773,4.44686849,3359.9,3359.8,0.001]
[1762497183977,0.1853,3359.9,3359.8,0.001]
[1762497184159,2.69774535,3359.9,3359.8,0.001]
[1762497184586,5.6740244,3359.9,3359.8,0.001]
[1762497184966,2.69774535,3359.9,3359.8,0.001]
[1762497185494,0.002,3360.1,3359.8,0.4656]
[1762497185672,0.002,3360.1,3360.0,2.97619047]
[1762497186090,0.2833,3360.1,3360.0,2.97619047]
[1762497186406,0.002,3360.1,3360.0,3.44079047]
[1762497187597,0.002,3360.1,3360.0,2.97619047]
[1762497187802,0.002,3360.1,3359.8,0.001]
[1762497187803,5.00686849,3360.1,3359.8,0.001]
[1762497187976,0.4638,3359.9,3359.8,2.97735482]
[1762497188381,0.924,3359.9,3359.8,2.97735482]
[1762497188681,0.2831,3359.9,3359.8,2.97735482]
[1762497189021,0.002,3360.1,3360.0,2.97619047]
[1762497189225,0.002,3360.1,3360.0,3.44079047]
[1762497189570,0.002,3360.1,3360.0,2.97619047]
[1762497189792,0.2833,3360.1,3360.0,2.97619047]
[1762497190478,0.7453,3360.1,3360.0,2.97619047]
[1762497190681,0.7453,3360.1,3359.8,2.97735482]
[1762497190682,0.7453,3360.1,3359.8,0.001]
[1762497190900,0.4642,3360.0,3359.8,2.97729259]
[1762497191094,0.4642,3360.0,3359.9,2.97627905]
[1762497191599,0.924,3360.0,3359.9,2.97627905]
[1762497191780,0.4598,3360.0,3359.9,2.97627905]
[1762497192382,0.9239,3360.0,3359.9,2.97627905]
[1762497192697,0.002,3360.1,3359.8,0.001]
[1762497192698,0.002,3360.1,3360.0,2.97619047]
[1762497193221,0.2744,3360.1,3360.0,2.97619047]
[1762497193990,0.002,3360.1,3360.0,2.97619047]
[1762497194591,0.2744,3360.1,3360.0,2.97619047]
[1762497195119,0.002,3360.1,3360.0,3.43779047]
[1762497195895,0.1508,3360.1,3360.0,3.90169047]
[1762497196129,0.1508,3360.1,3360.0,3.43779047]
[1762497196529,0.002,3360.1,3360.0,4.42331608]
[1762497196702,0.2744,3360.1,3360.0,2.97619047]
[1762497196893,0.002,3360.1,3360.0,3.43779047]
[1762497197791,0.7366,3360.1,3359.9,2.97622851]
[1762497197987,0.0046,3359.9,3359.8,0.001]
[1762497198193,0.0046,3359.9,3359.8,2.97736764]
[1762497202428,0.1488,3360.0,3359.9,2.97627905]
[1762497203633,0.002,3360.1,3360.0,2.97619047]
[1762497203835,0.002,3360.1,3360.0,3.43779047]
[1762497205293,0.002,3360.1,3360.0,3.90169047]
[1762497205527,0.002,3360.1,3360.0,4.12568742]
[1762497206693,0.002,3360.1,3360.0,3.43779047]
[1762497207120,0.2744,3360.1,3360.0,2.97619047]
[1762497207302,4.53596849,3360.1,3359.8,0.001]
[1762497207520,0.4622,3359.9,3359.8,0.001]
[1762497207865,0.4622,3359.9,3359.8,2.97736764]
[1762497208065,0.7365,3359.9,3359.8,2.97736764]
[1762497208569,0.4622,3359.9,3359.8,0.001]
[1762497208882,0.4622,3359.9,3359.4,0.1498]
[1762497208883,5.96596741,3359.9,3359.4,0.001]
[1762497209032,8.95561391,3359.5,3359.4,0.001]
[1762497209235,9.35428627,3359.5,3359.4,0.001]
[1762497209542,10.03859027,3359.5,3359.4,0.001]
[1762497209866,4.23661126,3359.2,3359.1,0.001]
[1762497210079,5.79368049,3359.2,3359.1,0.001]
[1762497210284,9.23277975,3359.2,3359.1,0.001]
[1762497211474,13.89985224,3359.2,3359.1,0.001]
[1762497212166,9.63828375,3359.2,3359.1,0.001]
[1762497214054,14.2985246,3359.2,3359.1,0.001]
[1762497214574,9.53450545,3359.2,3359.1,0.001]
[1762497214871,9.93317781,3359.2,3359.1,0.001]
[1762497215075,9.53450545,3359.2,3359.1,0.001]
[1762497216774,9.93317781,3359.2,3359.1,0.001]
[1762497216942,9.53450545,3359.2,3359.1,0.001]
[1762497217134,6.55760619,3359.2,3359.1,0.001]
[1762497217339,6.15210219,3359.2,3359.1,0.001]
[1762497217772,1.994312,3359.2,3359.1,0.001]
[1762497218467,1.532112,3359.2,3359.1,0.001]
[1762497219379,6.14100219,3359.2,3359.1,0.001]
[1762497219546,9.11790145,3359.2,3359.1,0.001]
[1762497220770,6.14100219,3359.2,3359.1,0.001]
[1762497220971,5.68990219,3359.2,3359.1,0.001]
[1762497221171,1.532112,3359.2,3359.1,0.001]
[1762497222239,4.97121126,3359.2,3359.1,0.001]
[1762497223162,5.37671526,3359.2,3359.1,0.001]
[1762497223389,5.77538762,3359.2,3359.1,0.001]
[1762497224261,5.37671526,3359.2,3359.1,0.001]
[1762497224482,5.77538762,3359.2,3359.1,0.001]
[1762497225706,5.77538762,3359.2,3358.7,0.001]
[1762497225707,4.69220388,3359.1,3358.7,0.001]
[1762497226007,5.16010388,3359.1,3358.7,0.001]
[1762497227101,5.11010388,3359.1,3358.7,0.001]
[1762497227457,5.55877624,3359.1,3358.7,0.001]
[1762497227697,5.16010388,3359.1,3358.7,0.001]
[1762497229500,6.05518674,3359.1,3358.7,0.001]
[1762497231782,6.4538591,3359.1,3358.7,0.001]
[1762497232095,6.05518674,3359.1,3358.7,0.001]
[1762497232464,6.4538591,3359.1,3358.7,0.001]
[1762497232660,4.23696578,3358.8,3358.7,0.001]